{"text_format":"3","workbook":"xlsx","n_sheets":2,"sheets":["Program angajat","Instalare"],"not_rendered":{"defined_names":21},"read":"whole","date_system":"1900"}

{"sheet":"Program angajat","index":0,"n_rows":296,"n_cols":21,"rows_kept":296,"merged":[[6,1,6,9],[66,1,66,9],[126,1,126,9],[186,1,186,9],[246,1,246,9]]}
["Program în schimburi client"]
[]
[null,"TOTAL:",null,{"$f":"SUM(4:4)","v":{"v":56,"d":"56.00"}}]
[null,"ORE:",null,{"$f":"TotalOreZiAngajat","v":{"v":8,"d":"8.00"}},{"v":8,"d":"8.00"},{"v":8,"d":"8.00"},{"v":8,"d":"8.00"},{"v":8,"d":"8.00"},{"v":8,"d":"8.00"},{"v":8,"d":"8.00"},{"v":0,"d":"0.00"},{"v":0,"d":"0.00"},{"v":0,"d":"0.00"},{"v":0,"d":"0.00"},{"v":0,"d":"0.00"},{"v":0,"d":"0.00"},{"v":0,"d":"0.00"},{"v":0,"d":"0.00"},{"v":0,"d":"0.00"},{"v":0,"d":"0.00"},{"v":0,"d":"0.00"}]
[null,"ANGAJAT:",null,"Potra, C.","Harrison, J.","Ene-Pietoșanu, M.","Harrison, J.","Roman, D.","Crisiarcu, I.","Ludwig, D."]
[]
[null,"2012-07-16T09:00:00"]
[null,{"$f":"B7","v":41106.375},{"$nulls":5},"Vacanță"]
[null,{"$f":"AfișarePerioade","v":":15"},null,"Birou față",{"$nulls":3},"Vacanță"]
[null,":30",null,"Birou față",{"$nulls":3},"Vacanță"]
[null,":45",null,"Birou față","Supraveghetor",null,"Serviciu clienți","Vacanță"]
[null,"10:00 a.m.",null,"Birou față","Supraveghetor",null,"Serviciu clienți","Vacanță"]
[null,":15",null,"Birou față","Supraveghetor",null,"Serviciu clienți","Vacanță"]
[null,":30",null,"Birou față","Supraveghetor",null,"Serviciu clienți","Vacanță","Contabilitate"]
[null,":45",null,"Birou față","Supraveghetor",null,"Serviciu clienți","Vacanță","Contabilitate","Portar"]
[null,"11:00 a.m.",null,"Birou față","Supraveghetor",null,"Serviciu clienți","Vacanță","Contabilitate","Portar"]
[null,":15",null,"Birou față","Supraveghetor","Ghid","Serviciu clienți","Vacanță","Contabilitate","Portar"]
[null,":30",null,"Birou față","Pauză","Ghid","Serviciu clienți","Vacanță","Contabilitate","Portar"]
[null,":45",null,"Prânz","Supraveghetor","Ghid","Serviciu clienți","Vacanță","Contabilitate","Portar"]
[null,"12:00 p.m.",null,"Prânz","Supraveghetor","Ghid","Serviciu clienți","Vacanță","Contabilitate","Portar"]
[null,":15",null,"Birou față","Supraveghetor","Ghid","Serviciu clienți","Vacanță","Pauză","Portar"]
[null,":30",null,"Birou față","Supraveghetor","Pauză","Serviciu clienți","Vacanță","Telefoane","Pauză"]
[null,":45",null,"Birou față","Supraveghetor","Ghid","Serviciu clienți","Vacanță","Telefoane","Portar"]
[null,"1:00 p.m.",null,"Birou față","Supraveghetor","Ghid","Serviciu clienți","Vacanță","Telefoane","Portar"]
[null,":15",null,"Birou față","Supraveghetor","Ghid","Prânz","Vacanță","Telefoane","Portar"]
[null,":30",null,null,"Supraveghetor","Ghid","Prânz","Vacanță","Telefoane","Portar"]
[null,":45",null,null,"Supraveghetor","Ghid","Prânz","Vacanță","Prânz","Portar"]
[null,"2:00 p.m.",null,"Casier","Prânz","Ghid","Prânz","Vacanță","Prânz","Portar"]
[null,":15",null,"Casier","Prânz","Ghid","Serviciu clienți","Vacanță","Telefoane","Portar"]
[null,":30",null,"Casier","Prânz","Prânz","Serviciu clienți","Vacanță","Telefoane","Prânz"]
[null,":45",null,"Casier","Prânz","Prânz","Serviciu clienți","Vacanță","Telefoane","Prânz"]
[null,"3:00 p.m.",null,"Casier","Securitate","Prânz","Serviciu clienți","Vacanță","Telefoane","Prânz"]
[null,":15",null,"Casier","Securitate","Prânz","Serviciu clienți","Vacanță","Telefoane","Prânz"]
[null,":30",null,"Casier","Securitate","Ghid","Serviciu clienți","Vacanță","Telefoane","Închidere"]
[null,":45",null,"Casier","Securitate","Ghid","Serviciu clienți","Vacanță","Telefoane","Închidere"]
[null,"4:00 p.m.",null,"Casier","Securitate","Ghid","Serviciu clienți","Vacanță","Pauză","Închidere"]
[null,":15",null,"Pauză","Securitate","Ghid","Pauză","Vacanță","Telefoane","Închidere"]
[null,":30",null,"Casier","Securitate","Ghid","Serviciu clienți","Vacanță","Telefoane","Închidere"]
[null,":45",null,"Casier","Securitate","Ghid","Serviciu clienți","Vacanță","Telefoane","Închidere"]
[null,"5:00 p.m.",null,"Casier","Securitate","Ghid","Serviciu clienți",null,"Telefoane","Închidere"]
[null,":15",null,"Casier","Securitate","Ghid","Serviciu clienți",null,"Telefoane","Închidere"]
[null,":30",null,"Casier","Securitate","Ghid","Serviciu clienți",null,"Telefoane","Închidere"]
[null,":45",null,"Casier","Securitate","Ghid","Serviciu clienți",null,"Telefoane","Închidere"]
[null,"6:00 p.m.",null,"Casier","Securitate","Ghid","Serviciu clienți",null,"Telefoane","Închidere"]
[null,":15",null,"Casier","Securitate","Ghid","Serviciu clienți",null,"Telefoane","Închidere"]
[null,":30",null,null,"Securitate","Ghid","Serviciu clienți",null,"Telefoane","Închidere"]
[null,":45",null,null,"Securitate","Pauză","Serviciu clienți",null,"Telefoane","Pauză"]
[null,"7:00 p.m.",{"$nulls":3},"Ghid",null,null,"Telefoane","Închidere"]
[null,":15",{"$nulls":3},"Ghid",null,null,"Telefoane","Închidere"]
[null,":30",{"$nulls":3},"Ghid",{"$nulls":3},"Închidere"]
[null,":45",{"$nulls":3},"Ghid",{"$nulls":3},"Închidere"]
[null,"8:00 p.m.",{"$nulls":3},"Ghid",{"$nulls":3},"Închidere"]
[null,":15",{"$nulls":3},"Ghid"]
[null,":30",{"$nulls":3},"Ghid"]
[null,":45"]
[null,"9:00 p.m."]
[]
[]
[]
[]
["Program angajat"]
[]
[null,"TOTAL:",null,{"$f":"SUM(64:64)","v":{"v":56,"d":"56.00"}}]
[null,"ORE:",null,{"$f":"TotalOreZiAngajat","v":{"v":8,"d":"8.00"}},{"v":8,"d":"8.00"},{"v":8,"d":"8.00"},{"v":8,"d":"8.00"},{"v":8,"d":"8.00"},{"v":8,"d":"8.00"},{"v":8,"d":"8.00"},{"v":0,"d":"0.00"},{"v":0,"d":"0.00"},{"v":0,"d":"0.00"},{"v":0,"d":"0.00"},{"v":0,"d":"0.00"},{"v":0,"d":"0.00"},{"v":0,"d":"0.00"},{"v":0,"d":"0.00"},{"v":0,"d":"0.00"},{"v":0,"d":"0.00"},{"v":0,"d":"0.00"}]
[null,"ANGAJAT:",null,"Potra, C.","Harrison, J.","Ene-Pietoșanu, M.","Landis, D.","Roman, D.","Crisiarcu, I.","Ludwig, D."]
[]
[null,{"$f":"B7+1","v":"2012-07-17T09:00:00"}]
[null,{"$f":"B67","v":41107.375},{"$nulls":5},"Vacanță"]
[null,{"$f":"AfișarePerioade","v":":15"},null,"Birou față",{"$nulls":3},"Vacanță"]
[null,":30",null,"Birou față",{"$nulls":3},"Vacanță"]
[null,":45",null,"Birou față","Supraveghetor",null,"Serviciu clienți","Vacanță"]
[null,"1:00 a.m.",null,"Birou față","Supraveghetor",null,"Serviciu clienți","Vacanță"]
[null,":15",null,"Birou față","Supraveghetor",null,"Serviciu clienți","Vacanță"]
[null,":30",null,"Birou față","Supraveghetor",null,"Serviciu clienți","Vacanță","Contabilitate"]
[null,":45",null,"Birou față","Supraveghetor",null,"Serviciu clienți","Vacanță","Contabilitate","Portar"]
[null,"2:00 a.m.",null,"Birou față","Supraveghetor",null,"Serviciu clienți","Vacanță","Contabilitate","Portar"]
[null,":15",null,"Birou față","Supraveghetor","Ghid","Serviciu clienți","Vacanță","Contabilitate","Portar"]
[null,":30",null,"Birou față","Pauză","Ghid","Serviciu clienți","Vacanță","Contabilitate","Portar"]
[null,":45",null,"Prânz","Supraveghetor","Ghid","Serviciu clienți","Vacanță","Contabilitate","Portar"]
[null,"3:00 a.m.",null,"Prânz","Supraveghetor","Ghid","Serviciu clienți","Vacanță","Contabilitate","Portar"]
[null,":15",null,"Birou față","Supraveghetor","Ghid","Serviciu clienți","Vacanță","Pauză","Portar"]
[null,":30",null,"Birou față","Supraveghetor","Pauză","Serviciu clienți","Vacanță","Telefoane","Pauză"]
[null,":45",null,"Birou față","Supraveghetor","Ghid","Serviciu clienți","Vacanță","Telefoane","Portar"]
[null,"4:00 a.m.",null,"Birou față","Supraveghetor","Ghid","Serviciu clienți","Vacanță","Telefoane","Portar"]
[null,":15",null,"Birou față","Supraveghetor","Ghid","Prânz","Vacanță","Telefoane","Portar"]
[null,":30",null,null,"Supraveghetor","Ghid","Prânz","Vacanță","Telefoane","Portar"]
[null,":45",null,null,"Supraveghetor","Ghid","Prânz","Vacanță","Prânz","Portar"]
[null,"5:00 a.m.",null,"Casier","Prânz","Ghid","Prânz","Vacanță","Prânz","Portar"]
[null,":15",null,"Casier","Prânz","Ghid","Serviciu clienți","Vacanță","Telefoane","Portar"]
[null,":30",null,"Casier","Prânz","Prânz","Serviciu clienți","Vacanță","Telefoane","Prânz"]
[null,":45",null,"Casier","Prânz","Prânz","Serviciu clienți","Vacanță","Telefoane","Prânz"]
[null,"6:00 a.m.",null,"Casier","Securitate","Prânz","Serviciu clienți","Vacanță","Telefoane","Prânz"]
[null,":15",null,"Casier","Securitate","Prânz","Serviciu clienți","Vacanță","Telefoane","Prânz"]
[null,":30",null,"Casier","Securitate","Ghid","Serviciu clienți","Vacanță","Telefoane","Închidere"]
[null,":45",null,"Casier","Securitate","Ghid","Serviciu clienți","Vacanță","Telefoane","Închidere"]
[null,"7:00 a.m.",null,"Casier","Securitate","Ghid","Serviciu clienți","Vacanță","Pauză","Închidere"]
[null,":15",null,"Pauză","Securitate","Ghid","Pauză","Vacanță","Telefoane","Închidere"]
[null,":30",null,"Casier","Securitate","Ghid","Serviciu clienți","Vacanță","Telefoane","Închidere"]
[null,":45",null,"Casier","Securitate","Ghid","Serviciu clienți","Vacanță","Telefoane","Închidere"]
[null,"8:00 a.m.",null,"Casier","Securitate","Ghid","Serviciu clienți",null,"Telefoane","Închidere"]
[null,":15",null,"Casier","Securitate","Ghid","Serviciu clienți",null,"Telefoane","Închidere"]
[null,":30",null,"Casier","Securitate","Ghid","Serviciu clienți",null,"Telefoane","Închidere"]
[null,":45",null,"Casier","Securitate","Ghid","Serviciu clienți",null,"Telefoane","Închidere"]
[null,"9:00 a.m.",null,"Casier","Securitate","Ghid","Serviciu clienți",null,"Telefoane","Închidere"]
[null,":15",null,"Casier","Securitate","Ghid","Serviciu clienți",null,"Telefoane","Închidere"]
[null,":30",null,null,"Securitate","Ghid","Serviciu clienți",null,"Telefoane","Închidere"]
[null,":45",null,null,"Securitate","Pauză","Serviciu clienți",null,"Telefoane","Pauză"]
[null,"10:00 a.m.",{"$nulls":3},"Ghid",null,null,"Telefoane","Închidere"]
[null,":15",{"$nulls":3},"Ghid",null,null,"Telefoane","Închidere"]
[null,":30",{"$nulls":3},"Ghid",{"$nulls":3},"Închidere"]
[null,":45",{"$nulls":3},"Ghid",{"$nulls":3},"Închidere"]
[null,"11:00 a.m.",{"$nulls":3},"Ghid",{"$nulls":3},"Închidere"]
[null,":15",{"$nulls":3},"Ghid"]
[null,":30",{"$nulls":3},"Ghid"]
[null,":45"]
[null,"12:00 p.m."]
[]
[]
[]
[]
["Program angajat"]
[]
[null,"TOTAL:",null,{"$f":"SUM(124:124)","v":{"v":56,"d":"56.00"}}]
[null,"ORE:",null,{"$f":"TotalOreZiAngajat","v":{"v":8,"d":"8.00"}},{"v":8,"d":"8.00"},{"v":8,"d":"8.00"},{"v":8,"d":"8.00"},{"v":8,"d":"8.00"},{"v":8,"d":"8.00"},{"v":8,"d":"8.00"},{"v":0,"d":"0.00"},{"v":0,"d":"0.00"},{"v":0,"d":"0.00"},{"v":0,"d":"0.00"},{"v":0,"d":"0.00"},{"v":0,"d":"0.00"},{"v":0,"d":"0.00"},{"v":0,"d":"0.00"},{"v":0,"d":"0.00"},{"v":0,"d":"0.00"},{"v":0,"d":"0.00"}]
[null,"ANGAJAT:",null,"Potra, C.","Harrison, J.","Ene-Pietoșanu, M.","Landis, D.","Roman, D.","Crisiarcu, I.","Ludwig, D."]
[]
[null,{"$f":"B67+1","v":"2012-07-18T09:00:00"}]
[null,{"$f":"B127","v":41108.375},{"$nulls":5},"Vacanță"]
[null,{"$f":"AfișarePerioade","v":":15"},null,"Birou față",{"$nulls":3},"Vacanță"]
[null,":30",null,"Birou față",{"$nulls":3},"Vacanță"]
[null,":45",null,"Birou față","Supraveghetor",null,"Serviciu clienți","Vacanță"]
[null,"4:00 p.m.",null,"Birou față","Supraveghetor",null,"Serviciu clienți","Vacanță"]
[null,":15",null,"Birou față","Supraveghetor",null,"Serviciu clienți","Vacanță"]
[null,":30",null,"Birou față","Supraveghetor",null,"Serviciu clienți","Vacanță","Contabilitate"]
[null,":45",null,"Birou față","Supraveghetor",null,"Serviciu clienți","Vacanță","Contabilitate","Portar"]
[null,"5:00 p.m.",null,"Birou față","Supraveghetor",null,"Serviciu clienți","Vacanță","Contabilitate","Portar"]
[null,":15",null,"Birou față","Supraveghetor","Ghid","Serviciu clienți","Vacanță","Contabilitate","Portar"]
[null,":30",null,"Birou față","Pauză","Ghid","Serviciu clienți","Vacanță","Contabilitate","Portar"]
[null,":45",null,"Prânz","Supraveghetor","Ghid","Serviciu clienți","Vacanță","Contabilitate","Portar"]
[null,"6:00 p.m.",null,"Prânz","Supraveghetor","Ghid","Serviciu clienți","Vacanță","Contabilitate","Portar"]
[null,":15",null,"Birou față","Supraveghetor","Ghid","Serviciu clienți","Vacanță","Pauză","Portar"]
[null,":30",null,"Birou față","Supraveghetor","Pauză","Serviciu clienți","Vacanță","Telefoane","Pauză"]
[null,":45",null,"Birou față","Supraveghetor","Ghid","Serviciu clienți","Vacanță","Telefoane","Portar"]
[null,"7:00 p.m.",null,"Birou față","Supraveghetor","Ghid","Serviciu clienți","Vacanță","Telefoane","Portar"]
[null,":15",null,"Birou față","Supraveghetor","Ghid","Prânz","Vacanță","Telefoane","Portar"]
[null,":30",null,null,"Supraveghetor","Ghid","Prânz","Vacanță","Telefoane","Portar"]
[null,":45",null,null,"Supraveghetor","Ghid","Prânz","Vacanță","Prânz","Portar"]
[null,"8:00 p.m.",null,"Casier","Prânz","Ghid","Prânz","Vacanță","Prânz","Portar"]
[null,":15",null,"Casier","Prânz","Ghid","Serviciu clienți","Vacanță","Telefoane","Portar"]
[null,":30",null,"Casier","Prânz","Prânz","Serviciu clienți","Vacanță","Telefoane","Prânz"]
[null,":45",null,"Casier","Prânz","Prânz","Serviciu clienți","Vacanță","Telefoane","Prânz"]
[null,"9:00 p.m.",null,"Casier","Securitate","Prânz","Serviciu clienți","Vacanță","Telefoane","Prânz"]
[null,":15",null,"Casier","Securitate","Prânz","Serviciu clienți","Vacanță","Telefoane","Prânz"]
[null,":30",null,"Casier","Securitate","Ghid","Serviciu clienți","Vacanță","Telefoane","Închidere"]
[null,":45",null,"Casier","Securitate","Ghid","Serviciu clienți","Vacanță","Telefoane","Închidere"]
[null,"10:00 p.m.",null,"Casier","Securitate","Ghid","Serviciu clienți","Vacanță","Pauză","Închidere"]
[null,":15",null,"Pauză","Securitate","Ghid","Pauză","Vacanță","Telefoane","Închidere"]
[null,":30",null,"Casier","Securitate","Ghid","Serviciu clienți","Vacanță","Telefoane","Închidere"]
[null,":45",null,"Casier","Securitate","Ghid","Serviciu clienți","Vacanță","Telefoane","Închidere"]
[null,"11:00 p.m.",null,"Casier","Securitate","Ghid","Serviciu clienți",null,"Telefoane","Închidere"]
[null,":15",null,"Casier","Securitate","Ghid","Serviciu clienți",null,"Telefoane","Închidere"]
[null,":30",null,"Casier","Securitate","Ghid","Serviciu clienți",null,"Telefoane","Închidere"]
[null,":45",null,"Casier","Securitate","Ghid","Serviciu clienți",null,"Telefoane","Închidere"]
[null,"12:00 a.m.",null,"Casier","Securitate","Ghid","Serviciu clienți",null,"Telefoane","Închidere"]
[null,":15",null,"Casier","Securitate","Ghid","Serviciu clienți",null,"Telefoane","Închidere"]
[null,":30",null,null,"Securitate","Ghid","Serviciu clienți",null,"Telefoane","Închidere"]
[null,":45",null,null,"Securitate","Pauză","Serviciu clienți",null,"Telefoane","Pauză"]
[null,"1:00 a.m.",{"$nulls":3},"Ghid",null,null,"Telefoane","Închidere"]
[null,":15",{"$nulls":3},"Ghid",null,null,"Telefoane","Închidere"]
[null,":30",{"$nulls":3},"Ghid",{"$nulls":3},"Închidere"]
[null,":45",{"$nulls":3},"Ghid",{"$nulls":3},"Închidere"]
[null,"2:00 a.m.",{"$nulls":3},"Ghid",{"$nulls":3},"Închidere"]
[null,":15",{"$nulls":3},"Ghid"]
[null,":30",{"$nulls":3},"Ghid"]
[null,":45"]
[null,"3:00 a.m."]
[]
[]
[]
[]
["Program angajat"]
[]
[null,"TOTAL:",null,{"$f":"SUM(184:184)","v":{"v":56,"d":"56.00"}}]
[null,"ORE:",null,{"$f":"TotalOreZiAngajat","v":{"v":8,"d":"8.00"}},{"v":8,"d":"8.00"},{"v":8,"d":"8.00"},{"v":8,"d":"8.00"},{"v":8,"d":"8.00"},{"v":8,"d":"8.00"},{"v":8,"d":"8.00"},{"v":0,"d":"0.00"},{"v":0,"d":"0.00"},{"v":0,"d":"0.00"},{"v":0,"d":"0.00"},{"v":0,"d":"0.00"},{"v":0,"d":"0.00"},{"v":0,"d":"0.00"},{"v":0,"d":"0.00"},{"v":0,"d":"0.00"},{"v":0,"d":"0.00"},{"v":0,"d":"0.00"}]
[null,"ANGAJAT:",null,"Potra, C.","Harrison, J.","Ene-Pietoșanu, M.","Landis, D.","Roman, D.","Crisiarcu, I.","Ludwig, D."]
[]
[null,{"$f":"B127+1","v":"2012-07-19T09:00:00"}]
[null,{"$f":"B187","v":41109.375},{"$nulls":5},"Vacanță"]
[null,{"$f":"AfișarePerioade","v":":15"},null,"Birou față",{"$nulls":3},"Vacanță"]
[null,":30",null,"Birou față",{"$nulls":3},"Vacanță"]
[null,":45",null,"Birou față","Supraveghetor",null,"Serviciu clienți","Vacanță"]
[null,"7:00 a.m.",null,"Birou față","Supraveghetor",null,"Serviciu clienți","Vacanță"]
[null,":15",null,"Birou față","Supraveghetor",null,"Serviciu clienți","Vacanță"]
[null,":30",null,"Birou față","Supraveghetor",null,"Serviciu clienți","Vacanță","Contabilitate"]
[null,":45",null,"Birou față","Supraveghetor",null,"Serviciu clienți","Vacanță","Contabilitate","Portar"]
[null,"8:00 a.m.",null,"Birou față","Supraveghetor",null,"Serviciu clienți","Vacanță","Contabilitate","Portar"]
[null,":15",null,"Birou față","Supraveghetor","Ghid","Serviciu clienți","Vacanță","Contabilitate","Portar"]
[null,":30",null,"Birou față","Pauză","Ghid","Serviciu clienți","Vacanță","Contabilitate","Portar"]
[null,":45",null,"Prânz","Supraveghetor","Ghid","Serviciu clienți","Vacanță","Contabilitate","Portar"]
[null,"9:00 a.m.",null,"Prânz","Supraveghetor","Ghid","Serviciu clienți","Vacanță","Contabilitate","Portar"]
[null,":15",null,"Birou față","Supraveghetor","Ghid","Serviciu clienți","Vacanță","Pauză","Portar"]
[null,":30",null,"Birou față","Supraveghetor","Pauză","Serviciu clienți","Vacanță","Telefoane","Pauză"]
[null,":45",null,"Birou față","Supraveghetor","Ghid","Serviciu clienți","Vacanță","Telefoane","Portar"]
[null,"10:00 a.m.",null,"Birou față","Supraveghetor","Ghid","Serviciu clienți","Vacanță","Telefoane","Portar"]
[null,":15",null,"Birou față","Supraveghetor","Ghid","Prânz","Vacanță","Telefoane","Portar"]
[null,":30",null,null,"Supraveghetor","Ghid","Prânz","Vacanță","Telefoane","Portar"]
[null,":45",null,null,"Supraveghetor","Ghid","Prânz","Vacanță","Prânz","Portar"]
[null,"11:00 a.m.",null,"Casier","Prânz","Ghid","Prânz","Vacanță","Prânz","Portar"]
[null,":15",null,"Casier","Prânz","Ghid","Serviciu clienți","Vacanță","Telefoane","Portar"]
[null,":30",null,"Casier","Prânz","Prânz","Serviciu clienți","Vacanță","Telefoane","Prânz"]
[null,":45",null,"Casier","Prânz","Prânz","Serviciu clienți","Vacanță","Telefoane","Prânz"]
[null,"12:00 p.m.",null,"Casier","Securitate","Prânz","Serviciu clienți","Vacanță","Telefoane","Prânz"]
[null,":15",null,"Casier","Securitate","Prânz","Serviciu clienți","Vacanță","Telefoane","Prânz"]
[null,":30",null,"Casier","Securitate","Ghid","Serviciu clienți","Vacanță","Telefoane","Închidere"]
[null,":45",null,"Casier","Securitate","Ghid","Serviciu clienți","Vacanță","Telefoane","Închidere"]
[null,"1:00 p.m.",null,"Casier","Securitate","Ghid","Serviciu clienți","Vacanță","Pauză","Închidere"]
[null,":15",null,"Pauză","Securitate","Ghid","Pauză","Vacanță","Telefoane","Închidere"]
[null,":30",null,"Casier","Securitate","Ghid","Serviciu clienți","Vacanță","Telefoane","Închidere"]
[null,":45",null,"Casier","Securitate","Ghid","Serviciu clienți","Vacanță","Telefoane","Închidere"]
[null,"2:00 p.m.",null,"Casier","Securitate","Ghid","Serviciu clienți",null,"Telefoane","Închidere"]
[null,":15",null,"Casier","Securitate","Ghid","Serviciu clienți",null,"Telefoane","Închidere"]
[null,":30",null,"Casier","Securitate","Ghid","Serviciu clienți",null,"Telefoane","Închidere"]
[null,":45",null,"Casier","Securitate","Ghid","Serviciu clienți",null,"Telefoane","Închidere"]
[null,"3:00 p.m.",null,"Casier","Securitate","Ghid","Serviciu clienți",null,"Telefoane","Închidere"]
[null,":15",null,"Casier","Securitate","Ghid","Serviciu clienți",null,"Telefoane","Închidere"]
[null,":30",null,null,"Securitate","Ghid","Serviciu clienți",null,"Telefoane","Închidere"]
[null,":45",null,null,"Securitate","Pauză","Serviciu clienți",null,"Telefoane","Pauză"]
[null,"4:00 p.m.",{"$nulls":3},"Ghid",null,null,"Telefoane","Închidere"]
[null,":15",{"$nulls":3},"Ghid",null,null,"Telefoane","Închidere"]
[null,":30",{"$nulls":3},"Ghid",{"$nulls":3},"Închidere"]
[null,":45",{"$nulls":3},"Ghid",{"$nulls":3},"Închidere"]
[null,"5:00 p.m.",{"$nulls":3},"Ghid",{"$nulls":3},"Închidere"]
[null,":15",{"$nulls":3},"Ghid"]
[null,":30",{"$nulls":3},"Ghid"]
[null,":45"]
[null,"6:00 p.m."]
[]
[]
[]
[]
["Program angajat"]
[]
[null,"TOTAL:",null,{"$f":"SUM(244:244)","v":{"v":56,"d":"56.00"}}]
[null,"ORE:",null,{"$f":"TotalOreZiAngajat","v":{"v":8,"d":"8.00"}},{"v":8,"d":"8.00"},{"v":8,"d":"8.00"},{"v":8,"d":"8.00"},{"v":8,"d":"8.00"},{"v":8,"d":"8.00"},{"v":8,"d":"8.00"},{"v":0,"d":"0.00"},{"v":0,"d":"0.00"},{"v":0,"d":"0.00"},{"v":0,"d":"0.00"},{"v":0,"d":"0.00"},{"v":0,"d":"0.00"},{"v":0,"d":"0.00"},{"v":0,"d":"0.00"},{"v":0,"d":"0.00"},{"v":0,"d":"0.00"},{"v":0,"d":"0.00"}]
[null,"ANGAJAT:",null,"Potra, C.","Harrison, J.","Ene-Pietoșanu, M.","Landis, D.","Roman, D.","Crisiarcu, I.","Ludwig, D."]
[]
[null,{"$f":"B187+1","v":"2012-07-20T09:00:00"}]
[null,{"$f":"B247","v":41110.375},{"$nulls":5},"Vacanță"]
[null,{"$f":"AfișarePerioade","v":":15"},null,"Birou față",{"$nulls":3},"Vacanță"]
[null,":30",null,"Birou față",{"$nulls":3},"Vacanță"]
[null,":45",null,"Birou față","Supraveghetor",null,"Serviciu clienți","Vacanță"]
[null,"10:00 p.m.",null,"Birou față","Supraveghetor",null,"Serviciu clienți","Vacanță"]
[null,":15",null,"Birou față","Supraveghetor",null,"Serviciu clienți","Vacanță"]
[null,":30",null,"Birou față","Supraveghetor",null,"Serviciu clienți","Vacanță","Contabilitate"]
[null,":45",null,"Birou față","Supraveghetor",null,"Serviciu clienți","Vacanță","Contabilitate","Portar"]
[null,"11:00 p.m.",null,"Birou față","Supraveghetor",null,"Serviciu clienți","Vacanță","Contabilitate","Portar"]
[null,":15",null,"Birou față","Supraveghetor","Ghid","Serviciu clienți","Vacanță","Contabilitate","Portar"]
[null,":30",null,"Birou față","Pauză","Ghid","Serviciu clienți","Vacanță","Contabilitate","Portar"]
[null,":45",null,"Prânz","Supraveghetor","Ghid","Serviciu clienți","Vacanță","Contabilitate","Portar"]
[null,"12:00 a.m.",null,"Prânz","Supraveghetor","Ghid","Serviciu clienți","Vacanță","Contabilitate","Portar"]
[null,":15",null,"Birou față","Supraveghetor","Ghid","Serviciu clienți","Vacanță","Pauză","Portar"]
[null,":30",null,"Birou față","Supraveghetor","Pauză","Serviciu clienți","Vacanță","Telefoane","Pauză"]
[null,":45",null,"Birou față","Supraveghetor","Ghid","Serviciu clienți","Vacanță","Telefoane","Portar"]
[null,"1:00 a.m.",null,"Birou față","Supraveghetor","Ghid","Serviciu clienți","Vacanță","Telefoane","Portar"]
[null,":15",null,"Birou față","Supraveghetor","Ghid","Prânz","Vacanță","Telefoane","Portar"]
[null,":30",null,null,"Supraveghetor","Ghid","Prânz","Vacanță","Telefoane","Portar"]
[null,":45",null,null,"Supraveghetor","Ghid","Prânz","Vacanță","Prânz","Portar"]
[null,"2:00 a.m.",null,"Casier","Prânz","Ghid","Prânz","Vacanță","Prânz","Portar"]
[null,":15",null,"Casier","Prânz","Ghid","Serviciu clienți","Vacanță","Telefoane","Portar"]
[null,":30",null,"Casier","Prânz","Prânz","Serviciu clienți","Vacanță","Telefoane","Prânz"]
[null,":45",null,"Casier","Prânz","Prânz","Serviciu clienți","Vacanță","Telefoane","Prânz"]
[null,"3:00 a.m.",null,"Casier","Securitate","Prânz","Serviciu clienți","Vacanță","Telefoane","Prânz"]
[null,":15",null,"Casier","Securitate","Prânz","Serviciu clienți","Vacanță","Telefoane","Prânz"]
[null,":30",null,"Casier","Securitate","Ghid","Serviciu clienți","Vacanță","Telefoane","Închidere"]
[null,":45",null,"Casier","Securitate","Ghid","Serviciu clienți","Vacanță","Telefoane","Închidere"]
[null,"4:00 a.m.",null,"Casier","Securitate","Ghid","Serviciu clienți","Vacanță","Pauză","Închidere"]
[null,":15",null,"Pauză","Securitate","Ghid","Pauză","Vacanță","Telefoane","Închidere"]
[null,":30",null,"Casier","Securitate","Ghid","Serviciu clienți","Vacanță","Telefoane","Închidere"]
[null,":45",null,"Casier","Securitate","Ghid","Serviciu clienți","Vacanță","Telefoane","Închidere"]
[null,"5:00 a.m.",null,"Casier","Securitate","Ghid","Serviciu clienți",null,"Telefoane","Închidere"]
[null,":15",null,"Casier","Securitate","Ghid","Serviciu clienți",null,"Telefoane","Închidere"]
[null,":30",null,"Casier","Securitate","Ghid","Serviciu clienți",null,"Telefoane","Închidere"]
[null,":45",null,"Casier","Securitate","Ghid","Serviciu clienți",null,"Telefoane","Închidere"]
[null,"6:00 a.m.",null,"Casier","Securitate","Ghid","Serviciu clienți",null,"Telefoane","Închidere"]
[null,":15",null,"Casier","Securitate","Ghid","Serviciu clienți",null,"Telefoane","Închidere"]
[null,":30",null,null,"Securitate","Ghid","Serviciu clienți",null,"Telefoane","Închidere"]
[null,":45",null,null,"Securitate","Pauză","Serviciu clienți",null,"Telefoane","Pauză"]
[null,"7:00 a.m.",{"$nulls":3},"Ghid",null,null,"Telefoane","Închidere"]
[null,":15",{"$nulls":3},"Ghid",null,null,"Telefoane","Închidere"]
[null,":30",{"$nulls":3},"Ghid",{"$nulls":3},"Închidere"]
[null,":45",{"$nulls":3},"Ghid",{"$nulls":3},"Închidere"]
[null,"8:00 a.m.",{"$nulls":3},"Ghid",{"$nulls":3},"Închidere"]
[null,":15",{"$nulls":3},"Ghid"]
[null,":30",{"$nulls":3},"Ghid"]
[null,":45"]
[null,"9:00 a.m."]

{"sheet":"Instalare","index":1,"n_rows":26,"n_cols":7,"rows_kept":26}
[null,"Instalare"]
[]
[]
[null,"INCREMENTE INTRARE PE ORĂ",4]
[]
[]
[]
[]
[]
[null,"Angajați",null,"Poziție/Concediu","Culoare","Plătit","Întreaga zi"]
[null,"Potra, C.",null,"Prânz",1,false,false]
[null,"Roman, D.",null,"Pauză",1,false,false]
[null,"Crisiarcu, I.",null,"Dezactivat",1,false,true]
[null,"Lupu, C.",null,"Bolnav",1,false,true]
[null,"Harrison, J.",null,"Zi personală",1,true,true]
[null,"Landis, D.",null,"Vacanță",1,true,true]
[null,"Ludwig, D.",null,"Birou față",2,true,false]
[null,"Ene-Pietoșanu, M.",null,"Casier",3,true,false]
[{"$nulls":3},"Supraveghetor",4,true,false]
[{"$nulls":3},"Ghid",5,true,false]
[{"$nulls":3},"Serviciu clienți",6,true,false]
[{"$nulls":3},"Telefoane",7,true,false]
[{"$nulls":3},"Securitate",8,true,false]
[{"$nulls":3},"Portar",9,true,false]
[{"$nulls":3},"Contabilitate",10,true,false]
[{"$nulls":3},"Închidere",11,true,false]